[Event "FIDE World School-ch G-13 2025"]
[Site "Vrnjacka Banja"]
[Date "2025.03.26"]
[Round "7.1"]
[White "Tereshchenko, Eliza"]
[Black "Begmuratova, Sarvinoz"]
[Result "0-1"]
[Annotator "NA RC"]
[ECO "D77"]
[WhiteElo "1751"]
[BlackElo "1808"]
[PlyCount "106"]
[EventDate "2025.03.19"]
[EventType "swiss"]
[EventCountry "SRB"]
[SourceTitle "playchess.com"]
[Source "ChessBase"]
[SourceQuality "1"]
[TimeControl "5400+30"]

1. d4 {[%emt 0:00:05]} Nf6 {[%emt 0:00:08]} 2. Nf3 {[%emt 0:00:04]} g6 {[%emt 0:00:04]} 3. g3 {[%emt 0:00:10]} Bg7 {[%emt 0:00:03]} 4. Bg2 {[%emt 0:00:07]} O-O {[%emt 0:00:18]} 5. O-O {[%emt 0:00:09]} d5 {[%emt 0:00:02]} 6. c4 {[%emt 0:00:09]} dxc4 {[%emt 0:00:05]} 7. Na3 {[%emt 0:00:05]} a5 {[%emt 0:00:10]} 8. Nxc4 {[%emt 0:02:28]} a4 {[%emt 0:00:06]} 9. Bf4 {[%emt 0:03:18]} Nc6 {[%emt 0:00:14]} 10. Nce5 {[%emt 0:10:41]} Nd5 {[%emt 0:12:40]} 11. Nxc6 {[%emt 0:06:48]} bxc6 {[%emt 0:00:06]} 12. Rc1 {[%emt 0:04:34]} Nxf4 {[%emt 0:07:54]} 13. gxf4 {[%emt 0:00:06]} Be6 {[%emt 0:02:03]} 14. a3 {[%emt 0:09:22]} Bd5 {[%emt 0:09:14]} 15. e3 {[%emt 0:04:56]} Qd6 {[%emt 0:06:30]} 16. Qc2 {[%emt 0:12:32]} Qe6 {[%emt 0:06:44]} 17. Ng5 {[%emt 0:11:15]} Qg4 {[%emt 0:06:06]} 18. f3 {[%emt 0:08:51]} Qh5 {[%emt 0:08:31]} 19. Ne4 {[%emt 0:02:30]} Rab8 {[%emt 0:07:53]} 20. Nc5 {[%emt 0:01:09]} Bb3 {[%emt 0:00:51]} 21. Qe2 {[%emt 0:07:49]} Rb5 {[%emt 0:09:54]} 22. Rc3 {[%emt 0:02:00]} Rd8 {[%emt 0:05:35]} 23. Nxb3 {[%emt 0:04:01]} Rxb3 {[%emt 0:00:07]} 24. Rxb3 {[%emt 0:00:14]} axb3 {[%emt 0:00:05]} 25. Rc1 {[%emt 0:01:06]} Rd6 {[%emt 0:04:47]} 26. Rc5 {[%emt 0:01:19]} Qh4 {[%emt 0:00:28]} 27. Rc3 {[%emt 0:02:41]} c5 {[%emt 0:03:47]} 28. dxc5 {[%emt 0:04:46]} Re6 {[%emt 0:00:04]} 29. Rxb3 {[%emt 0:00:25]} Bd4 {[%emt 0:01:48]} 30. Rd3 {[%emt 0:01:11]} Qxf4 {[%emt 0:01:06]} 31. Kh1 {[%emt 0:00:37]} Bxe3 {[%emt 0:00:24]} 32. Qf1 {[%emt 0:00:30]} Bxc5 {[%emt 0:00:39]} 33. Rd8+ {[%emt 0:00:29]} Kg7 {[%emt 0:00:04]} 34. Rd1 {[%emt 0:00:24]} Bd6 {[%emt 0:00:32]} 35. Qg1 {[%emt 0:00:01]} Re5 {[%emt 0:00:46]} 36. h3 {[%emt 0:00:23]} Re3 {[%emt 0:00:33]} 37. Ra1 {[%emt 0:01:09]} Qg3 {[%emt 0:01:24]} 38. Rf1 {[%emt 0:00:33]} Re2 {[%emt 0:00:39]} 39. b4 {[%emt 0:00:29]} Bf4 {[%emt 0:01:21]} 40. a4 {[%emt 0:00:23]} Re5 {[%emt 0:01:22]} 41. Ra1 {[%emt 0:00:32]} Rh5 {[%emt 0:00:14]} 42. Ra2 {[%emt 0:00:09]} Rxh3+ {[%emt 0:02:40]} 43. Bxh3 {[%emt 0:00:02]} Qxh3+ {[%emt 0:00:04]} 44. Rh2 {[%emt 0:00:07]} Bxh2 {[%emt 0:00:05]} 45. Qxh2 {[%emt 0:00:01]} Qxf3+ {[%emt 0:02:25]} 46. Qg2 {[%emt 0:01:42]} Qd1+ {[%emt 0:00:05]} 47. Qg1 {[%emt 0:00:06]} Qxa4 {[%emt 0:00:23]} 48. Qd4+ {[%emt 0:00:08]} f6 {[%emt 0:00:13]} 49. Qc5 {[%emt 0:00:03]} Qd1+ {[%emt 0:00:11]} 50. Kg2 {[%emt 0:00:10]} Qd6 {[%emt 0:00:09]} 51. Qc3 {[%emt 0:01:28]} h5 {[%emt 0:00:23]} 52. Qa3 {[%emt 0:00:25]} h4 {[%emt 0:00:15]} 53. Qa5 {[%emt 0:00:36]} Qg3+ {[%emt 0:00:52]} 0-1

[Event "FIDE World School-ch G-13 2025"]
[Site "Vrnjacka Banja"]
[Date "2025.03.26"]
[Round "7.2"]
[White "Amanzhol, Khanzada"]
[Black "Omirserik, Alima"]
[Result "1-0"]
[Annotator "NA RC"]
[ECO "B42"]
[WhiteElo "1908"]
[BlackElo "1814"]
[PlyCount "93"]
[EventDate "2025.03.19"]
[EventType "swiss"]
[EventCountry "SRB"]
[SourceTitle "playchess.com"]
[Source "ChessBase"]
[SourceQuality "1"]
[TimeControl "5400+30"]

1. e4 {[%emt 0:00:03]} c5 {[%emt 0:00:04]} 2. Nf3 {[%emt 0:00:11]} e6 {[%emt 0:00:04]} 3. d4 {[%emt 0:00:08]} cxd4 {[%emt 0:00:04]} 4. Nxd4 {[%emt 0:00:06]} Qb6 {[%emt 0:00:06]} 5. Nb3 {[%emt 0:07:58]} Qc7 {[%emt 0:00:10]} 6. Be3 {[%emt 0:01:12]} a6 {[%emt 0:00:26]} 7. Bd3 {[%emt 0:02:48]} d6 {[%emt 0:01:16]} 8. c4 {[%emt 0:03:40]} b6 {[%emt 0:00:17]} 9. Qe2 {[%emt 0:02:43]} Bb7 {[%emt 0:00:48]} 10. N1d2 {[%emt 0:02:57]} Nd7 {[%emt 0:02:21]} 11. O-O {[%emt 0:01:34]} Ngf6 {[%emt 0:03:57]} 12. f3 {[%emt 0:07:21]} Be7 {[%emt 0:03:49]} 13. a4 {[%emt 0:04:00]} a5 {[%emt 0:12:25]} 14. Nd4 {[%emt 0:00:53]} O-O {[%emt 0:02:58]} 15. Nb5 {[%emt 0:10:01]} Qd8 {[%emt 0:02:15]} 16. f4 {[%emt 0:05:37]} Ne8 {[%emt 0:06:09]} 17. f5 {[%emt 0:07:27]} Bf6 {[%emt 0:04:45]} 18. Nf3 {[%emt 0:03:32]} exf5 {[%emt 0:03:17]} 19. exf5 {[%emt 0:00:19]} Ne5 {[%emt 0:08:13]} 20. Nxe5 {[%emt 0:00:48]} Bxe5 {[%emt 0:01:12]} 21. Qf2 {[%emt 0:01:58]} Ra6 {[%emt 0:02:56]} 22. Rad1 {[%emt 0:04:00]} Nf6 {[%emt 0:04:25]} 23. Bf4 {[%emt 0:03:00]} Qb8 {[%emt 0:06:50]} 24. Be2 {[%emt 0:07:07]} d5 {[%emt 0:07:15]} 25. Bxe5 {[%emt 0:04:06]} Qxe5 {[%emt 0:00:07]} 26. cxd5 {[%emt 0:01:43]} Nxd5 {[%emt 0:00:50]} 27. Bf3 {[%emt 0:02:01]} Rd8 {[%emt 0:17:34]} 28. Rfe1 {[%emt 0:00:27]} Qb8 {[%emt 0:00:45]} 29. Bxd5 {[%emt 0:00:57]} Bxd5 {[%emt 0:03:11]} 30. Rxd5 {[%emt 0:01:09]} Rxd5 {[%emt 0:00:10]} 31. Nc7 {[%emt 0:00:06]} Rd8 {[%emt 0:00:34]} 32. Nxa6 {[%emt 0:00:07]} Qb7 {[%emt 0:00:19]} 33. Qe2 {[%emt 0:00:51]} Rf8 {[%emt 0:01:17]} 34. b4 {[%emt 0:01:18]} h6 {[%emt 0:01:00]} 35. b5 {[%emt 0:01:08]} Rc8 {[%emt 0:00:42]} 36. Rd1 {[%emt 0:01:23]} f6 {[%emt 0:02:07]} 37. Qe3 {[%emt 0:01:37]} Kh7 {[%emt 0:01:00]} 38. Re1 {[%emt 0:05:08]} Rc4 {[%emt 0:00:34]} 39. Qg3 {[%emt 0:00:49]} Re4 {[%emt 0:01:36]} 40. Rc1 {[%emt 0:01:13]} Rxa4 {[%emt 0:01:03]} 41. h3 {[%emt 0:01:38]} Qf7 {[%emt 0:01:11]} 42. Rc7 {[%emt 0:00:11]} Qf8 {[%emt 0:00:06]} 43. Nb8 {[%emt 0:01:55]} Ra1+ {[%emt 0:00:26]} 44. Kh2 {[%emt 0:00:04]} a4 {[%emt 0:00:10]} 45. Nd7 {[%emt 0:00:39]} Qd8 {[%emt 0:00:33]} 46. Nc5 {[%emt 0:00:47]} bxc5 {[%emt 0:00:26]} 47. Qxg7# {[%emt 0:00:10]} 1-0

[Event "FIDE World School-ch G-13 2025"]
[Site "Vrnjacka Banja"]
[Date "2025.03.26"]
[Round "7.3"]
[White "Gaer, Sofiya Ig"]
[Black "Abylaykyzy, Bibisara"]
[Result "1/2-1/2"]
[Annotator "NA RC"]
[ECO "B31"]
[WhiteElo "1733"]
[BlackElo "1651"]
[PlyCount "100"]
[EventDate "2025.03.19"]
[EventType "swiss"]
[EventCountry "SRB"]
[SourceTitle "playchess.com"]
[Source "ChessBase"]
[SourceQuality "1"]
[TimeControl "5400+30"]

1. e4 {[%emt 0:00:03]} c5 {[%emt 0:00:05]} 2. Nf3 {[%emt 0:00:06]} Nc6 {[%emt 0:00:11]} 3. Bb5 {[%emt 0:00:09]} g6 {[%emt 0:00:39]} 4. O-O {[%emt 0:00:42]} Bg7 {[%emt 0:00:06]} 5. Bxc6 {[%emt 0:01:02]} bxc6 {[%emt 0:00:11]} 6. Nc3 {[%emt 0:01:28]} d5 {[%emt 0:03:45]} 7. Re1 {[%emt 0:04:40]} e6 {[%emt 0:01:15]} 8. Qe2 {[%emt 0:06:59]} Ne7 {[%emt 0:01:31]} 9. exd5 {[%emt 0:04:03]} Nxd5 {[%emt 0:01:53]} 10. Ne4 {[%emt 0:02:48]} Nb4 {[%emt 0:04:29]} 11. d3 {[%emt 0:03:10]} Na6 {[%emt 0:05:27]} 12. Bg5 {[%emt 0:05:58]} f6 {[%emt 0:01:30]} 13. Be3 {[%emt 0:02:34]} Qe7 {[%emt 0:03:16]} 14. Qd2 {[%emt 0:02:54]} Rb8 {[%emt 0:04:32]} 15. Rab1 {[%emt 0:07:48]} O-O {[%emt 0:03:27]} 16. a3 {[%emt 0:05:42]} f5 {[%emt 0:08:30]} 17. Nc3 {[%emt 0:03:48]} Bb7 {[%emt 0:09:12]} 18. Na4 {[%emt 0:04:55]} Bc8 {[%emt 0:07:14]} 19. Bf4 {[%emt 0:01:48]} Rb7 {[%emt 0:01:02]} 20. Ne5 {[%emt 0:01:54]} Bxe5 {[%emt 0:05:27]} 21. Rxe5 {[%emt 0:02:58]} Rd7 {[%emt 0:04:49]} 22. Rbe1 {[%emt 0:04:30]} Rd4 {[%emt 0:02:23]} 23. b3 {[%emt 0:04:41]} Re8 {[%emt 0:08:45]} 24. Qe3 {[%emt 0:06:29]} Rd5 {[%emt 0:03:46]} 25. Qg3 {[%emt 0:02:34]} Rd4 {[%emt 0:04:16]} 26. h4 {[%emt 0:07:11]} c4 {[%emt 0:02:07]} 27. dxc4 {[%emt 0:04:03]} Qxa3 {[%emt 0:00:08]} 28. Rxf5 {[%emt 0:01:53]} Red8 {[%emt 0:05:01]} 29. Rfe5 {[%emt 0:02:43]} Rd1 {[%emt 0:02:14]} 30. h5 {[%emt 0:01:22]} Qa1 {[%emt 0:01:21]} 31. f3 {[%emt 0:03:24]} Rxe1+ {[%emt 0:01:43]} 32. Rxe1 {[%emt 0:00:05]} Rd1 {[%emt 0:00:12]} 33. Rxd1 {[%emt 0:02:03]} Qxd1+ {[%emt 0:00:10]} 34. Kh2 {[%emt 0:00:03]} Qxc2 {[%emt 0:00:21]} 35. Qg5 {[%emt 0:00:45]} Qf5 {[%emt 0:01:37]} 36. Qd8+ {[%emt 0:00:36]} Kf7 {[%emt 0:00:07]} 37. hxg6+ {[%emt 0:00:23]} hxg6 {[%emt 0:00:11]} 38. Bg5 {[%emt 0:00:41]} e5 {[%emt 0:02:55]} 39. Qe7+ {[%emt 0:00:15]} Kg8 {[%emt 0:00:06]} 40. Bf6 {[%emt 0:00:22]} Qf4+ {[%emt 0:00:21]} 41. Kg1 {[%emt 0:00:49]} Qc1+ {[%emt 0:00:06]} 42. Kf2 {[%emt 0:00:35]} Qd2+ {[%emt 0:00:10]} 43. Kg1 {[%emt 0:00:15]} Qc1+ {[%emt 0:00:06]} 44. Kh2 {[%emt 0:00:24]} Qf4+ {[%emt 0:00:05]} 45. Kh1 {[%emt 0:00:49]} Qc1+ {[%emt 0:00:07]} 46. Kh2 {[%emt 0:00:04]} Qf4+ {[%emt 0:00:05]} 47. Kg1 {[%emt 0:00:10]} Qc1+ {[%emt 0:00:06]} 48. Kf2 {[%emt 0:00:05]} Qd2+ {[%emt 0:00:04]} 49. Kf1 {[%emt 0:00:24]} Qd1+ {[%emt 0:00:08]} 50. Kf2 {[%emt 0:00:08]} Qd2+ {[%emt 0:00:05]} 1/2-1/2

[Event "FIDE World School-ch G-13 2025"]
[Site "Vrnjacka Banja"]
[Date "2025.03.26"]
[Round "7.4"]
[White "Smirnova, Viktoria A"]
[Black "Leca Andrei, Anastasia"]
[Result "1-0"]
[Annotator "NA RC"]
[ECO "D30"]
[WhiteElo "1671"]
[BlackElo "1805"]
[PlyCount "99"]
[EventDate "2025.03.19"]
[EventType "swiss"]
[EventCountry "SRB"]
[SourceTitle "playchess.com"]
[Source "ChessBase"]
[SourceQuality "1"]
[TimeControl "5400+30"]

1. d4 {[%emt 0:00:02]} d5 {[%emt 0:00:08]} 2. c4 {[%emt 0:00:44]} e6 {[%emt 0:00:06]} 3. Nf3 {[%emt 0:00:32]} c6 {[%emt 0:00:05]} 4. Nbd2 {[%emt 0:00:12]} Nf6 {[%emt 0:00:49]} 5. Qc2 {[%emt 0:03:55]} Nbd7 {[%emt 0:06:52]} 6. g3 {[%emt 0:02:31]} Bb4 {[%emt 0:04:26]} 7. a3 {[%emt 0:05:20]} Bxd2+ {[%emt 0:01:42]} 8. Nxd2 {[%emt 0:03:19]} e5 {[%emt 0:06:01]} 9. cxd5 {[%emt 0:05:33]} Nxd5 {[%emt 0:01:54]} 10. Bg2 {[%emt 0:20:21]} N5f6 {[%emt 0:08:30]} 11. Nc4 {[%emt 0:14:59]} Qe7 {[%emt 0:07:25]} 12. dxe5 {[%emt 0:00:59]} Nxe5 {[%emt 0:07:34]} 13. Nxe5 {[%emt 0:01:03]} Qxe5 {[%emt 0:00:07]} 14. Bxc6+ {[%emt 0:09:26]} Ke7 {[%emt 0:19:46]} 15. Bg2 {[%emt 0:04:31]} Rd8 {[%emt 0:03:57]} 16. Bf4 {[%emt 0:03:01]} Qb5 {[%emt 0:08:31]} 17. O-O {[%emt 0:02:31]} Be6 {[%emt 0:01:41]} 18. a4 {[%emt 0:01:34]} Qa6 {[%emt 0:01:19]} 19. Bg5 {[%emt 0:03:34]} Rac8 {[%emt 0:02:24]} 20. Bxf6+ {[%emt 0:00:36]} Kxf6 {[%emt 0:00:13]} 21. Qxh7 {[%emt 0:03:33]} Rd4 {[%emt 0:02:27]} 22. e4 {[%emt 0:02:23]} g6 {[%emt 0:01:50]} 23. e5+ {[%emt 0:04:49]} Ke7 {[%emt 0:00:26]} 24. Qg7 {[%emt 0:01:19]} Rcc4 {[%emt 0:03:27]} 25. Qf6+ {[%emt 0:00:51]} Ke8 {[%emt 0:03:04]} 26. a5 {[%emt 0:03:19]} Qb5 {[%emt 0:02:51]} 27. Qh8+ {[%emt 0:01:11]} Ke7 {[%emt 0:00:20]} 28. Qb8 {[%emt 0:00:54]} Rd7 {[%emt 0:02:22]} 29. Rfd1 {[%emt 0:00:45]} Rcc7 {[%emt 0:02:17]} 30. Rxd7+ {[%emt 0:00:19]} Rxd7 {[%emt 0:00:19]} 31. Qxa7 {[%emt 0:00:32]} Qxe5 {[%emt 0:00:37]} 32. Qb6 {[%emt 0:00:19]} Bd5 {[%emt 0:01:08]} 33. Bxd5 {[%emt 0:00:41]} Qxd5 {[%emt 0:00:01]} 34. Re1+ {[%emt 0:00:11]} Kf8 {[%emt 0:00:04]} 35. Qb4+ {[%emt 0:00:10]} Kg7 {[%emt 0:00:18]} 36. Qc3+ {[%emt 0:00:19]} Kh6 {[%emt 0:01:38]} 37. Qh8+ {[%emt 0:00:14]} Kg5 {[%emt 0:00:05]} 38. Re5+ {[%emt 0:00:07]} Qxe5 {[%emt 0:00:07]} 39. Qxe5+ {[%emt 0:00:10]} f5 {[%emt 0:00:02]} 40. h4+ {[%emt 0:00:11]} Kh5 {[%emt 0:00:05]} 41. Qh8+ {[%emt 0:00:43]} Kg4 {[%emt 0:00:03]} 42. Qh6 {[%emt 0:00:18]} Kf3 {[%emt 0:00:11]} 43. Qf4+ {[%emt 0:00:47]} Ke2 {[%emt 0:00:07]} 44. Qe3+ {[%emt 0:00:38]} Kd1 {[%emt 0:00:04]} 45. Qb3+ {[%emt 0:00:45]} Kc1 {[%emt 0:00:05]} 46. Qc4+ {[%emt 0:00:33]} Kb1 {[%emt 0:00:06]} 47. a6 {[%emt 0:00:09]} bxa6 {[%emt 0:00:05]} 48. Qxa6 {[%emt 0:00:04]} Rd1+ {[%emt 0:00:08]} 49. Kg2 {[%emt 0:00:06]} Kxb2 {[%emt 0:00:07]} 50. Qxg6 {[%emt 0:00:12]} 1-0

[Event "FIDE World School-ch G-13 2025"]
[Site "Vrnjacka Banja"]
[Date "2025.03.26"]
[Round "7.5"]
[White "Wangluo, Joanne"]
[Black "Xu, Luna Yuexiu"]
[Result "0-1"]
[Annotator "NA RC"]
[ECO "D07"]
[WhiteElo "1516"]
[BlackElo "1901"]
[PlyCount "120"]
[EventDate "2025.03.19"]
[EventType "swiss"]
[EventCountry "SRB"]
[SourceTitle "playchess.com"]
[Source "ChessBase"]
[SourceQuality "1"]
[TimeControl "5400+30"]

1. d4 {[%emt 0:00:01]} d5 {[%emt 0:00:17]} 2. c4 {[%emt 0:00:07]} Nc6 {[%emt 0:00:14]} 3. cxd5 {[%emt 0:01:01]} Qxd5 {[%emt 0:00:11]} 4. Nc3 {[%emt 0:00:25]} Qxd4 {[%emt 0:00:40]} 5. e4 {[%emt 0:06:25]} Qxd1+ {[%emt 0:00:30]} 6. Nxd1 {[%emt 0:00:58]} Nf6 {[%emt 0:00:27]} 7. f3 {[%emt 0:03:11]} e5 {[%emt 0:00:20]} 8. Bd2 {[%emt 0:04:02]} Bd7 {[%emt 0:00:58]} 9. Bc4 {[%emt 0:03:31]} Nd4 {[%emt 0:00:53]} 10. Rc1 {[%emt 0:01:44]} b5 {[%emt 0:00:55]} 11. Bd3 {[%emt 0:01:39]} c5 {[%emt 0:01:04]} 12. b3 {[%emt 1:13:26]} a5 {[%emt 0:01:59]} 13. Nb2 {[%emt 0:00:00]} Bd6 {[%emt 0:00:38]} 14. Ne2 {[%emt 0:00:00]} Ke7 {[%emt 0:00:43]} 15. Nc3 {[%emt 0:00:00]} a4 {[%emt 0:01:48]} 16. bxa4 {[%emt 0:00:00]} c4 {[%emt 0:00:31]} 17. Bxc4 {[%emt 0:00:00]} bxc4 {[%emt 0:01:23]} 18. Nxc4 {[%emt 0:00:00]} Rhb8 {[%emt 0:03:24]} 19. Bg5 {[%emt 0:00:00]} Be6 {[%emt 0:02:32]} 20. Nxd6 {[%emt 0:00:00]} Kxd6 {[%emt 0:00:13]} 21. Rd1 {[%emt 0:00:00]} Rb2 {[%emt 0:03:34]} 22. O-O {[%emt 0:00:00]} Rc2 {[%emt 0:03:07]} 23. Nb5+ {[%emt 0:00:00]} Kc5 {[%emt 0:01:00]} 24. Be3 {[%emt 0:00:00]} Rxa4 {[%emt 0:00:53]} 25. Nxd4 {[%emt 0:00:00]} exd4 {[%emt 0:00:09]} 26. Rf2 {[%emt 0:00:00]} Rxf2 {[%emt 0:00:19]} 27. Bxf2 {[%emt 0:00:00]} Bxa2 {[%emt 0:00:12]} 28. Rc1+ {[%emt 0:00:00]} Rc4 {[%emt 0:00:31]} 29. Ra1 {[%emt 0:00:00]} Bb3 {[%emt 0:00:17]} 30. Ra5+ {[%emt 0:00:00]} Kc6 {[%emt 0:00:33]} 31. Ra6+ {[%emt 0:00:00]} Kb5 {[%emt 0:00:20]} 32. Ra1 {[%emt 0:00:00]} d3 {[%emt 0:00:15]} 33. Be1 {[%emt 0:00:00]} Rc2 {[%emt 0:00:17]} 34. Rb1 {[%emt 0:00:00]} Kc4 {[%emt 0:00:11]} 35. Rd1 {[%emt 0:02:07]} Re2 {[%emt 0:00:35]} 36. Rc1+ {[%emt 0:02:09]} Bc2 {[%emt 0:00:15]} 37. Kf1 {[%emt 0:01:25]} Rxe1+ {[%emt 0:01:22]} 38. Kxe1 {[%emt 0:03:28]} Kc3 {[%emt 0:00:07]} 39. Ra1 {[%emt 0:01:46]} d2+ {[%emt 0:00:08]} 40. Ke2 {[%emt 0:00:41]} d1=Q+ {[%emt 0:00:09]} 41. Rxd1 {[%emt 0:00:13]} Bxd1+ {[%emt 0:00:08]} 42. Kxd1 {[%emt 0:00:10]} Kd3 {[%emt 0:00:05]} 43. Ke1 {[%emt 0:00:50]} Ke3 {[%emt 0:00:08]} 44. Kf1 {[%emt 0:00:59]} Nh5 {[%emt 0:00:13]} 45. Ke1 {[%emt 0:02:42]} Nf4 {[%emt 0:00:20]} 46. Kf1 {[%emt 0:00:00]} Nd3 {[%emt 0:00:12]} 47. h3 {[%emt 0:00:18]} g5 {[%emt 0:00:13]} 48. Kg1 {[%emt 0:00:40]} Ke2 {[%emt 0:00:11]} 49. Kh2 {[%emt 0:00:09]} Kf2 {[%emt 0:00:10]} 50. h4 {[%emt 0:00:49]} gxh4 {[%emt 0:00:44]} 51. Kh3 {[%emt 0:00:13]} Nf4+ {[%emt 0:00:41]} 52. Kxh4 {[%emt 0:01:21]} Nxg2+ {[%emt 0:00:14]} 53. Kg4 {[%emt 0:00:00]} Ke3 {[%emt 0:00:11]} 54. Kg3 {[%emt 0:00:00]} Ne1 {[%emt 0:00:10]} 55. Kg4 {[%emt 0:00:55]} Nxf3 {[%emt 0:00:12]} 56. Kf5 {[%emt 0:00:08]} h5 {[%emt 0:00:16]} 57. e5 {[%emt 0:00:28]} h4 {[%emt 0:00:17]} 58. Kg4 {[%emt 0:00:37]} Nxe5+ {[%emt 0:00:11]} 59. Kxh4 {[%emt 0:00:08]} f5 {[%emt 0:00:08]} 60. Kg3 {[%emt 0:00:25]} f4+ {[%emt 0:00:07]} 0-1

[Event "FIDE World School-ch G-13 2025"]
[Site "Vrnjacka Banja"]
[Date "2025.03.26"]
[Round "7.6"]
[White "Akuratiya, A G Hansadie Aradhya"]
[Black "Enkhzaya, Zagas-Erdene"]
[Result "1/2-1/2"]
[Annotator "NA RC"]
[ECO "C54"]
[WhiteElo "1629"]
[BlackElo "1801"]
[PlyCount "114"]
[EventDate "2025.03.19"]
[EventType "swiss"]
[EventCountry "SRB"]
[SourceTitle "playchess.com"]
[Source "ChessBase"]
[SourceQuality "1"]
[TimeControl "5400+30"]

1. e4 {[%emt 0:00:22]} e5 {[%emt 0:00:01]} 2. Nf3 {[%emt 0:00:29]} Nf6 {[%emt 0:00:02]} 3. Bc4 {[%emt 0:01:02]} Nc6 {[%emt 0:03:51]} 4. d3 {[%emt 0:23:45]} Bc5 {[%emt 0:05:49]} 5. c3 {[%emt 0:00:38]} d6 {[%emt 0:00:50]} 6. h3 {[%emt 0:01:07]} O-O {[%emt 0:00:21]} 7. O-O {[%emt 0:00:20]} h6 {[%emt 0:01:52]} 8. Re1 {[%emt 0:02:12]} Be6 {[%emt 0:02:59]} 9. Bb5 {[%emt 0:02:21]} a6 {[%emt 0:11:43]} 10. Ba4 {[%emt 0:00:04]} b5 {[%emt 0:00:58]} 11. Bc2 {[%emt 0:00:21]} Ba7 {[%emt 0:04:28]} 12. Nbd2 {[%emt 0:01:35]} Ne7 {[%emt 0:03:49]} 13. Nf1 {[%emt 0:04:27]} Ng6 {[%emt 0:02:33]} 14. Ng3 {[%emt 0:00:44]} c6 {[%emt 0:02:59]} 15. d4 {[%emt 0:01:59]} Qc7 {[%emt 0:00:25]} 16. Nf5 {[%emt 0:01:19]} Rfe8 {[%emt 0:03:07]} 17. N3h4 {[%emt 0:06:41]} Nxh4 {[%emt 0:02:17]} 18. Nxh4 {[%emt 0:00:08]} Rad8 {[%emt 0:00:46]} 19. Qf3 {[%emt 0:02:10]} Qe7 {[%emt 0:04:25]} 20. Nf5 {[%emt 0:01:43]} Bxf5 {[%emt 0:00:38]} 21. exf5 {[%emt 0:00:21]} e4 {[%emt 0:02:23]} 22. Qg3 {[%emt 0:02:50]} Kh8 {[%emt 0:00:20]} 23. Qh4 {[%emt 0:03:20]} d5 {[%emt 0:04:20]} 24. g4 {[%emt 0:02:38]} Bb8 {[%emt 0:05:07]} 25. f4 {[%emt 0:11:17]} a5 {[%emt 0:15:47]} 26. Be3 {[%emt 0:09:12]} Bd6 {[%emt 0:01:15]} 27. g5 {[%emt 0:02:06]} Nh7 {[%emt 0:03:27]} 28. Kf2 {[%emt 0:02:30]} hxg5 {[%emt 0:01:14]} 29. fxg5 {[%emt 0:00:15]} g6 {[%emt 0:00:09]} 30. fxg6 {[%emt 0:04:22]} fxg6 {[%emt 0:00:07]} 31. Ke2 {[%emt 0:00:23]} Rf8 {[%emt 0:01:14]} 32. Rf1 {[%emt 0:00:52]} Qc7 {[%emt 0:02:55]} 33. Rf6 {[%emt 0:04:25]} Qg7 {[%emt 0:02:20]} 34. Raf1 {[%emt 0:01:21]} Kg8 {[%emt 0:00:09]} 35. R6f2 {[%emt 0:02:54]} Rxf2+ {[%emt 0:01:30]} 36. Rxf2 {[%emt 0:00:13]} Rf8 {[%emt 0:00:04]} 37. Qg4 {[%emt 0:01:19]} Rxf2+ {[%emt 0:01:09]} 38. Bxf2 {[%emt 0:00:13]} Qc7 {[%emt 0:00:08]} 39. h4 {[%emt 0:01:17]} Nf8 {[%emt 0:02:42]} 40. Bb3 {[%emt 0:01:13]} a4 {[%emt 0:00:11]} 41. Bd1 {[%emt 0:00:50]} Qf7 {[%emt 0:00:17]} 42. b4 {[%emt 0:01:50]} Ne6 {[%emt 0:00:10]} 43. a3 {[%emt 0:01:00]} Nf4+ {[%emt 0:01:06]} 44. Ke3 {[%emt 0:00:26]} Nd3 {[%emt 0:01:19]} 45. Bg3 {[%emt 0:00:55]} Qf1 {[%emt 0:01:54]} 46. Qe6+ {[%emt 0:00:20]} Kg7 {[%emt 0:00:42]} 47. Qf6+ {[%emt 0:00:19]} Qxf6 {[%emt 0:00:02]} 48. gxf6+ {[%emt 0:00:07]} Kxf6 {[%emt 0:00:06]} 49. Bxd6 {[%emt 0:00:03]} Ke6 {[%emt 0:00:14]} 50. Bg3 {[%emt 0:00:52]} Kf5 {[%emt 0:00:09]} 51. Be2 {[%emt 0:01:34]} Nc1 {[%emt 0:00:02]} 52. Be1 {[%emt 0:01:05]} Nxe2 {[%emt 0:00:29]} 53. Kxe2 {[%emt 0:00:03]} Kg4 {[%emt 0:00:56]} 54. Ke3 {[%emt 0:00:29]} Kf5 {[%emt 0:00:05]} 55. Bf2 {[%emt 0:00:37]} Kg4 {[%emt 0:00:01]} 56. Be1 {[%emt 0:00:22]} Kf5 {[%emt 0:00:02]} 57. Bf2 {[%emt 0:00:38]} Kg4 {[%emt 0:00:02]} 1/2-1/2